[Event "Titled Tuesday Blitz August 24 2021"]
[White "Tang, Andrew"]
[Black "Weetik, Vjacheslav"]
[WhiteFideId "2059630"]
[BlackFideId "4153472"]
[WhiteElo "2588"]
[BlackElo "2469"]
[Result "1-0"]
[Round "07"]
[TimeControl "180+1"]
[Date "2021.08.24"]
[WhiteClock "0:00:11"]
[BlackClock "0:00:02"]

1. d4 {[%clk 0:03:00]}  d5 {[%clk 0:02:59]} 2. Bf4 {[%clk 0:03:00]}  Nf6 {[%clk 0:02:59]} 3. e3 {[%clk 0:03:00]}  g6 {[%clk 0:02:43]} 4. Nf3 {[%clk 0:02:48]}  Bg7 {[%clk 0:02:43]} 5. h3 {[%clk 0:02:46]}  O-O {[%clk 0:02:41]} 6. Be2 {[%clk 0:02:47]}  c5 {[%clk 0:02:39]} 7. Nbd2 {[%clk 0:02:47]}  Nc6 {[%clk 0:02:29]} 8. c3 {[%clk 0:02:44]}  Nd7 {[%clk 0:02:27]} 9. O-O {[%clk 0:02:30]}  e5 {[%clk 0:02:26]} 10. dxe5 {[%clk 0:02:30]}  Ndxe5 {[%clk 0:02:27]} 11. a4 {[%clk 0:02:26]}  Bf5 {[%clk 0:02:20]} 12. Nxe5 {[%clk 0:02:22]}  Nxe5 {[%clk 0:02:18]} 13. Nf3 {[%clk 0:02:23]}  Nc4 {[%clk 0:02:17]} 14. Bxc4 {[%clk 0:02:12]}  dxc4 {[%clk 0:02:17]} 15. Bd6 {[%clk 0:02:13]}  Bd3 {[%clk 0:01:43]} 16. Bxf8 {[%clk 0:02:03]}  Kxf8 {[%clk 0:01:43]} 17. Re1 {[%clk 0:02:02]}  Qb6 {[%clk 0:01:42]} 18. Qc1 {[%clk 0:01:59]}  Re8 {[%clk 0:01:32]} 19. a5 {[%clk 0:01:54]}  Qc6 {[%clk 0:01:29]} 20. Nd2 {[%clk 0:01:55]}  h5 {[%clk 0:01:21]} 21. Qd1 {[%clk 0:01:53]}  Re6 {[%clk 0:00:51]} 22. Qa4 {[%clk 0:01:52]}  Qd5 {[%clk 0:00:49]} 23. e4 {[%clk 0:01:52]}  Qg5 {[%clk 0:00:45]} 24. Nxc4 {[%clk 0:01:45]}  Bxe4 {[%clk 0:00:45]} 25. Ne3 {[%clk 0:01:38]}  Bc6 {[%clk 0:00:45]} 26. Qc2 {[%clk 0:01:35]}  f5 {[%clk 0:00:36]} 27. f4 {[%clk 0:00:24]}  Qxf4 {[%clk 0:00:33]} 28. Qf2 {[%clk 0:00:24]}  Qg5 {[%clk 0:00:18]} 29. Rad1 {[%clk 0:00:20]}  h4 {[%clk 0:00:15]} 30. Nc4 {[%clk 0:00:16]}  Be4 {[%clk 0:00:08]} 31. Qxc5+ {[%clk 0:00:15]}  Kg8 {[%clk 0:00:08]} 32. Re2 {[%clk 0:00:13]}  Kh7 {[%clk 0:00:08]} 33. Qf2 {[%clk 0:00:11]}  Bf8 {[%clk 0:00:07]} 34. Nd2 {[%clk 0:00:11]}  Bd6 {[%clk 0:00:01]} 35. Nxe4 {[%clk 0:00:10]}  fxe4 {[%clk 0:00:01]} 36. Qf7+ {[%clk 0:00:10]}  Kh6 {[%clk 0:00:02]} 37. Qxe6 {[%clk 0:00:11]}  Bc5+ {[%clk 0:00:02]} 38. Kh1 {[%clk 0:00:11]} 1-0


[Site "https://www.chess.com"]

[Event "Titled Tuesday Blitz August 24 2021"]
[White "Ter-Sahakyan, Samvel"]
[Black "Kislov, Oleg"]
[WhiteFideId "13302531"]
[BlackFideId "13503774"]
[WhiteElo "2551"]
[BlackElo "2252"]
[Result "1-0"]
[Round "07"]
[TimeControl "180+1"]
[Date "2021.08.24"]
[WhiteClock "0:00:46"]
[BlackClock "0:00:51"]

1. Nf3 {[%clk 0:03:00]}  d5 {[%clk 0:02:59]} 2. e3 {[%clk 0:03:00]}  Nf6 {[%clk 0:02:59]} 3. c4 {[%clk 0:03:01]}  e6 {[%clk 0:02:58]} 4. Nc3 {[%clk 0:03:01]}  c5 {[%clk 0:02:58]} 5. cxd5 {[%clk 0:02:57]}  exd5 {[%clk 0:02:58]} 6. d4 {[%clk 0:02:56]}  Nc6 {[%clk 0:02:58]} 7. Bb5 {[%clk 0:02:55]}  Be7 {[%clk 0:02:57]} 8. dxc5 {[%clk 0:02:55]}  Bxc5 {[%clk 0:02:56]} 9. O-O {[%clk 0:02:55]}  O-O {[%clk 0:02:56]} 10. h3 {[%clk 0:02:55]}  d4 {[%clk 0:02:54]} 11. Bxc6 {[%clk 0:02:51]}  dxc3 {[%clk 0:02:53]} 12. Ba4 {[%clk 0:02:51]}  cxb2 {[%clk 0:02:43]} 13. Bxb2 {[%clk 0:02:52]}  Be6 {[%clk 0:02:42]} 14. Bb3 {[%clk 0:02:47]}  Qxd1 {[%clk 0:02:40]} 15. Rfxd1 {[%clk 0:02:47]}  Bxb3 {[%clk 0:02:36]} 16. axb3 {[%clk 0:02:47]}  Rfd8 {[%clk 0:02:37]} 17. Bxf6 {[%clk 0:02:45]}  gxf6 {[%clk 0:02:36]} 18. Kf1 {[%clk 0:02:45]}  Rxd1+ {[%clk 0:02:23]} 19. Rxd1 {[%clk 0:02:45]}  a5 {[%clk 0:02:24]} 20. Ke2 {[%clk 0:02:41]}  b5 {[%clk 0:02:23]} 21. Rd5 {[%clk 0:02:40]}  Rc8 {[%clk 0:02:21]} 22. Nd2 {[%clk 0:02:34]}  a4 {[%clk 0:02:16]} 23. bxa4 {[%clk 0:02:35]}  bxa4 {[%clk 0:02:16]} 24. Ne4 {[%clk 0:02:35]}  Be7 {[%clk 0:02:14]} 25. Ra5 {[%clk 0:02:33]}  a3 {[%clk 0:02:14]} 26. Ra7 {[%clk 0:02:31]}  Kf8 {[%clk 0:02:09]} 27. g4 {[%clk 0:02:31]}  Rc2+ {[%clk 0:02:01]} 28. Kd3 {[%clk 0:02:26]}  Rc1 {[%clk 0:01:58]} 29. Ra8+ {[%clk 0:02:20]}  Kg7 {[%clk 0:01:58]} 30. Ng3 {[%clk 0:02:21]}  Bf8 {[%clk 0:01:38]} 31. Nh5+ {[%clk 0:02:16]}  Kg8 {[%clk 0:01:36]} 32. Nxf6+ {[%clk 0:02:15]}  Kg7 {[%clk 0:01:36]} 33. Nh5+ {[%clk 0:02:07]}  Kg8 {[%clk 0:01:35]} 34. f4 {[%clk 0:02:05]}  Rh1 {[%clk 0:01:31]} 35. Ke4 {[%clk 0:01:48]}  Rxh3 {[%clk 0:01:29]} 36. Nf6+ {[%clk 0:01:33]}  Kg7 {[%clk 0:01:28]} 37. Nd7 {[%clk 0:01:14]}  Be7 {[%clk 0:01:25]} 38. g5 {[%clk 0:01:09]}  h6 {[%clk 0:01:18]} 39. gxh6+ {[%clk 0:01:10]}  Rxh6 {[%clk 0:01:17]} 40. Ne5 {[%clk 0:01:08]}  Rb6 {[%clk 0:01:11]} 41. Ra7 {[%clk 0:01:01]}  Bf8 {[%clk 0:01:02]} 42. Rxf7+ {[%clk 0:01:00]}  Kg8 {[%clk 0:01:01]} 43. Ra7 {[%clk 0:00:56]}  Rb3 {[%clk 0:00:55]} 44. Ng4 {[%clk 0:00:47]}  Bc5 {[%clk 0:00:51]} 45. Nf6+ {[%clk 0:00:46]} 1-0


[Site "https://www.chess.com"]

[Event "Titled Tuesday Blitz August 24 2021"]
[White "Terry, Renato"]
[Black "Krivonosov, Oleg"]
[WhiteFideId "3803457"]
[BlackFideId "11600349"]
[WhiteElo "2581"]
[BlackElo "2469"]
[Result "1/2-1/2"]
[Round "07"]
[TimeControl "180+1"]
[Date "2021.08.24"]
[WhiteClock "0:01:58"]
[BlackClock "0:01:35"]

1. e4 {[%clk 0:03:00]}  e5 {[%clk 0:02:59]} 2. Nf3 {[%clk 0:03:01]}  Nc6 {[%clk 0:02:59]} 3. c3 {[%clk 0:03:01]}  Nf6 {[%clk 0:02:58]} 4. d4 {[%clk 0:03:02]}  Nxe4 {[%clk 0:02:58]} 5. d5 {[%clk 0:03:02]}  Nb8 {[%clk 0:02:57]} 6. Nxe5 {[%clk 0:03:02]}  Qe7 {[%clk 0:02:56]} 7. Qd4 {[%clk 0:03:02]}  d6 {[%clk 0:02:55]} 8. Bb5+ {[%clk 0:03:01]}  Nd7 {[%clk 0:02:53]} 9. Bxd7+ {[%clk 0:03:00]}  Bxd7 {[%clk 0:02:52]} 10. Nxd7 {[%clk 0:03:01]}  Nf6+ {[%clk 0:02:30]} 11. Be3 {[%clk 0:03:00]}  Qxd7 {[%clk 0:02:27]} 12. O-O {[%clk 0:02:57]}  Be7 {[%clk 0:02:28]} 13. c4 {[%clk 0:02:57]}  O-O {[%clk 0:02:27]} 14. Nc3 {[%clk 0:02:57]}  Ng4 {[%clk 0:02:18]} 15. Bf4 {[%clk 0:02:57]}  Bf6 {[%clk 0:02:18]} 16. Qd2 {[%clk 0:02:57]}  Ne5 {[%clk 0:02:13]} 17. b3 {[%clk 0:02:57]}  Ng6 {[%clk 0:02:11]} 18. Bg3 {[%clk 0:02:41]}  Rfe8 {[%clk 0:02:09]} 19. Rae1 {[%clk 0:02:36]}  Bxc3 {[%clk 0:02:07]} 20. Qxc3 {[%clk 0:02:35]}  Rxe1 {[%clk 0:02:07]} 21. Rxe1 {[%clk 0:02:36]}  Re8 {[%clk 0:02:06]} 22. f3 {[%clk 0:02:26]}  Rxe1+ {[%clk 0:02:02]} 23. Qxe1 {[%clk 0:02:26]}  h5 {[%clk 0:01:56]} 24. h4 {[%clk 0:02:22]}  a6 {[%clk 0:01:51]} 25. Qb4 {[%clk 0:02:19]}  b6 {[%clk 0:01:47]} 26. Qa3 {[%clk 0:02:18]}  a5 {[%clk 0:01:45]} 27. Qc1 {[%clk 0:02:15]}  Qf5 {[%clk 0:01:43]} 28. Kh2 {[%clk 0:02:07]}  Ne5 {[%clk 0:01:38]} 29. Qe3 {[%clk 0:01:58]}  f6 {[%clk 0:01:35]} 1/2-1/2


[Site "https://www.chess.com"]

[Event "Titled Tuesday Blitz August 24 2021"]
[White "Tregubov, Pavel V."]
[Black "Koziol, Kamil"]
[WhiteFideId "4115341"]
[BlackFideId "1161555"]
[WhiteElo "2423"]
[BlackElo "2025"]
[Result "1-0"]
[Round "07"]
[TimeControl "180+1"]
[Date "2021.08.24"]
[WhiteClock "0:00:58"]
[BlackClock "0:00:07"]

1. e4 {[%clk 0:02:56]}  c5 {[%clk 0:02:59]} 2. Nf3 {[%clk 0:02:55]}  e6 {[%clk 0:02:59]} 3. c3 {[%clk 0:02:55]}  d5 {[%clk 0:02:59]} 4. e5 {[%clk 0:02:55]}  d4 {[%clk 0:02:50]} 5. Bd3 {[%clk 0:02:53]}  Nc6 {[%clk 0:02:47]} 6. O-O {[%clk 0:02:53]}  Nge7 {[%clk 0:02:44]} 7. Re1 {[%clk 0:02:53]}  Ng6 {[%clk 0:02:44]} 8. Be4 {[%clk 0:02:48]}  Be7 {[%clk 0:02:29]} 9. Na3 {[%clk 0:02:48]}  O-O {[%clk 0:02:28]} 10. Nc4 {[%clk 0:02:47]}  Qc7 {[%clk 0:02:18]} 11. a4 {[%clk 0:02:46]}  Rd8 {[%clk 0:02:08]} 12. d3 {[%clk 0:02:47]}  b6 {[%clk 0:02:00]} 13. h4 {[%clk 0:02:43]}  Bb7 {[%clk 0:01:55]} 14. h5 {[%clk 0:02:43]}  Nf8 {[%clk 0:01:51]} 15. h6 {[%clk 0:02:40]}  g6 {[%clk 0:01:45]} 16. Bg5 {[%clk 0:02:38]}  a6 {[%clk 0:01:33]} 17. Qd2 {[%clk 0:02:33]}  b5 {[%clk 0:01:31]} 18. Bxe7 {[%clk 0:02:25]}  Nxe7 {[%clk 0:01:11]} 19. Bxb7 {[%clk 0:02:06]}  Qxb7 {[%clk 0:01:01]} 20. Nd6 {[%clk 0:02:07]}  Qc6 {[%clk 0:01:01]} 21. Qg5 {[%clk 0:01:55]}  Rxd6 {[%clk 0:00:57]} 22. Qxe7 {[%clk 0:01:45]}  Nd7 {[%clk 0:00:17]} 23. exd6 {[%clk 0:01:23]}  Rf8 {[%clk 0:00:13]} 24. Rxe6 {[%clk 0:01:18]}  dxc3 {[%clk 0:00:10]} 25. bxc3 {[%clk 0:01:17]}  b4 {[%clk 0:00:11]} 26. c4 {[%clk 0:01:07]}  b3 {[%clk 0:00:10]} 27. Ne5 {[%clk 0:01:01]}  Qc8 {[%clk 0:00:08]} 28. Nxd7 {[%clk 0:00:59]}  b2 {[%clk 0:00:07]} 29. Rb1 {[%clk 0:00:58]} 1-0


[Site "https://www.chess.com"]

[Event "Titled Tuesday Blitz August 24 2021"]
[White "Tsyhanchuk, Stanislav"]
[Black "Aldokhin, Ivan"]
[WhiteFideId "13505130"]
[BlackFideId "24115720"]
[WhiteElo "2121"]
[BlackElo "2306"]
[Result "1-0"]
[Round "07"]
[TimeControl "180+1"]
[Date "2021.08.24"]
[WhiteClock "0:00:37"]
[BlackClock "0:00:02"]

1. e4 {[%clk 0:03:00]}  c5 {[%clk 0:02:57]} 2. Nf3 {[%clk 0:02:59]}  e6 {[%clk 0:02:57]} 3. d4 {[%clk 0:02:59]}  cxd4 {[%clk 0:02:57]} 4. Nxd4 {[%clk 0:03:00]}  a6 {[%clk 0:02:57]} 5. Bd3 {[%clk 0:03:00]}  Qc7 {[%clk 0:02:56]} 6. O-O {[%clk 0:03:01]}  Nf6 {[%clk 0:02:57]} 7. Nc3 {[%clk 0:03:01]}  d6 {[%clk 0:02:56]} 8. Qe2 {[%clk 0:03:01]}  Be7 {[%clk 0:02:56]} 9. f4 {[%clk 0:03:01]}  Nbd7 {[%clk 0:02:56]} 10. Kh1 {[%clk 0:03:01]}  b5 {[%clk 0:02:56]} 11. Bd2 {[%clk 0:03:01]}  Bb7 {[%clk 0:02:55]} 12. Rae1 {[%clk 0:03:01]}  b4 {[%clk 0:02:40]} 13. Nd1 {[%clk 0:03:01]}  Nc5 {[%clk 0:02:40]} 14. Nf2 {[%clk 0:02:44]}  a5 {[%clk 0:02:39]} 15. Bb5+ {[%clk 0:02:42]}  Nfd7 {[%clk 0:02:30]} 16. c3 {[%clk 0:02:30]}  O-O {[%clk 0:02:23]} 17. e5 {[%clk 0:02:09]}  Bh4 {[%clk 0:02:05]} 18. cxb4 {[%clk 0:01:29]}  axb4 {[%clk 0:02:01]} 19. Bxb4 {[%clk 0:01:30]}  Rxa2 {[%clk 0:01:33]} 20. Rc1 {[%clk 0:01:28]}  Qb6 {[%clk 0:01:29]} 21. Ng4 {[%clk 0:01:27]}  Ne4 {[%clk 0:01:10]} 22. Nxe6 {[%clk 0:01:12]}  fxe6 {[%clk 0:01:02]} 23. Bxd7 {[%clk 0:01:11]}  Qxb4 {[%clk 0:00:57]} 24. Bxe6+ {[%clk 0:01:09]}  Kh8 {[%clk 0:00:56]} 25. Bxa2 {[%clk 0:01:10]}  Nc5 {[%clk 0:00:26]} 26. exd6 {[%clk 0:01:01]}  h6 {[%clk 0:00:11]} 27. d7 {[%clk 0:00:53]}  Bd8 {[%clk 0:00:10]} 28. Ne5 {[%clk 0:00:44]}  Rf6 {[%clk 0:00:04]} 29. Nf7+ {[%clk 0:00:38]}  Kh7 {[%clk 0:00:02]} 30. Nxd8 {[%clk 0:00:38]}  Rg6 {[%clk 0:00:03]} 31. Nxb7 {[%clk 0:00:38]}  Qxb7 {[%clk 0:00:02]} 32. Rxc5 {[%clk 0:00:37]} 1-0


[Site "https://www.chess.com"]

[Event "Titled Tuesday Blitz August 24 2021"]
[White "Vakhidov, Shahzod"]
[Black "Krysa, Leandro"]
[WhiteFideId "14205270"]
[BlackFideId "116807"]
[WhiteElo "1988"]
[BlackElo "2490"]
[Result "1-0"]
[Round "07"]
[TimeControl "180+1"]
[Date "2021.08.24"]
[WhiteClock "0:00:20"]
[BlackClock "0:00:02"]

1. c4 {[%clk 0:03:00]}  c5 {[%clk 0:02:58]} 2. g3 {[%clk 0:03:01]}  Nf6 {[%clk 0:02:57]} 3. Bg2 {[%clk 0:03:02]}  e6 {[%clk 0:02:57]} 4. Nf3 {[%clk 0:03:01]}  b6 {[%clk 0:02:55]} 5. O-O {[%clk 0:02:57]}  Bb7 {[%clk 0:02:55]} 6. Nc3 {[%clk 0:02:54]}  Be7 {[%clk 0:02:55]} 7. d4 {[%clk 0:02:54]}  cxd4 {[%clk 0:02:56]} 8. Qxd4 {[%clk 0:02:54]}  d6 {[%clk 0:02:57]} 9. Rd1 {[%clk 0:02:49]}  a6 {[%clk 0:02:56]} 10. Bg5 {[%clk 0:02:48]}  Nbd7 {[%clk 0:02:54]} 11. Rac1 {[%clk 0:02:38]}  O-O {[%clk 0:02:52]} 12. b3 {[%clk 0:02:32]}  Qc7 {[%clk 0:02:52]} 13. Qd2 {[%clk 0:02:29]}  Rac8 {[%clk 0:02:50]} 14. Bf4 {[%clk 0:02:20]}  e5 {[%clk 0:02:39]} 15. Bg5 {[%clk 0:02:17]}  Qb8 {[%clk 0:02:35]} 16. Nh4 {[%clk 0:02:06]}  g6 {[%clk 0:02:22]} 17. e4 {[%clk 0:01:55]}  Rfe8 {[%clk 0:02:16]} 18. Bh6 {[%clk 0:01:53]}  b5 {[%clk 0:02:12]} 19. cxb5 {[%clk 0:01:44]}  axb5 {[%clk 0:02:12]} 20. Nf5 {[%clk 0:01:39]}  b4 {[%clk 0:02:12]} 21. Nxe7+ {[%clk 0:01:37]}  Rxe7 {[%clk 0:02:11]} 22. Nb5 {[%clk 0:01:22]}  Rxc1 {[%clk 0:02:09]} 23. Rxc1 {[%clk 0:01:16]}  Ne8 {[%clk 0:01:28]} 24. Qxb4 {[%clk 0:01:11]}  Nc5 {[%clk 0:01:24]} 25. Qc4 {[%clk 0:01:02]}  Ba6 {[%clk 0:01:18]} 26. a4 {[%clk 0:01:01]}  Nc7 {[%clk 0:01:13]} 27. Bf1 {[%clk 0:01:00]}  Re8 {[%clk 0:00:56]} 28. b4 {[%clk 0:00:49]}  Bxb5 {[%clk 0:00:52]} 29. axb5 {[%clk 0:00:49]}  N5e6 {[%clk 0:00:52]} 30. Be3 {[%clk 0:00:44]}  Kg7 {[%clk 0:00:38]} 31. b6 {[%clk 0:00:44]}  Na8 {[%clk 0:00:38]} 32. Qc6 {[%clk 0:00:42]}  Rd8 {[%clk 0:00:36]} 33. b5 {[%clk 0:00:35]}  h5 {[%clk 0:00:23]} 34. b7 {[%clk 0:00:34]}  Nac7 {[%clk 0:00:23]} 35. Bb6 {[%clk 0:00:34]}  Rh8 {[%clk 0:00:09]} 36. Bxc7 {[%clk 0:00:33]}  Qa7 {[%clk 0:00:10]} 37. b8=Q {[%clk 0:00:29]}  Rxb8 {[%clk 0:00:08]} 38. b6 {[%clk 0:00:26]}  Qa3 {[%clk 0:00:02]} 39. Bxb8 {[%clk 0:00:23]}  Nd4 {[%clk 0:00:02]} 40. Qxd6 {[%clk 0:00:20]} 1-0


[Site "https://www.chess.com"]

[Event "Titled Tuesday Blitz August 24 2021"]
[White "Vlassov, Nikolai"]
[Black "Martinez Reyes, Pedro Ramon"]
[WhiteFideId "4103360"]
[BlackFideId "3901807"]
[WhiteElo "2407"]
[BlackElo "2398"]
[Result "1-0"]
[Round "07"]
[TimeControl "180+1"]
[Date "2021.08.24"]
[WhiteClock "0:00:51"]
[BlackClock "0:00:08"]

1. e4 {[%clk 0:03:00]}  e6 {[%clk 0:03:00]} 2. d4 {[%clk 0:03:00]}  d5 {[%clk 0:03:00]} 3. exd5 {[%clk 0:03:01]}  exd5 {[%clk 0:03:00]} 4. Nf3 {[%clk 0:03:02]}  Nf6 {[%clk 0:03:00]} 5. c4 {[%clk 0:03:03]}  Be7 {[%clk 0:03:01]} 6. Bd3 {[%clk 0:03:03]}  O-O {[%clk 0:03:01]} 7. O-O {[%clk 0:03:03]}  Nc6 {[%clk 0:03:01]} 8. Nc3 {[%clk 0:03:03]}  dxc4 {[%clk 0:02:59]} 9. Bxc4 {[%clk 0:03:03]}  Bg4 {[%clk 0:02:59]} 10. Be3 {[%clk 0:02:57]}  a6 {[%clk 0:02:57]} 11. h3 {[%clk 0:02:54]}  Bh5 {[%clk 0:02:57]} 12. g4 {[%clk 0:02:54]}  Bg6 {[%clk 0:02:57]} 13. Ne5 {[%clk 0:02:54]}  Nb4 {[%clk 0:02:30]} 14. Rc1 {[%clk 0:02:25]}  Nfd5 {[%clk 0:02:23]} 15. Bd2 {[%clk 0:02:11]}  Nxc3 {[%clk 0:01:54]} 16. bxc3 {[%clk 0:02:10]}  Nd5 {[%clk 0:01:51]} 17. f4 {[%clk 0:01:58]}  f6 {[%clk 0:01:45]} 18. Qb3 {[%clk 0:01:52]}  c6 {[%clk 0:01:30]} 19. Nxg6 {[%clk 0:01:48]}  hxg6 {[%clk 0:01:31]} 20. Qxb7 {[%clk 0:01:46]}  Qd6 {[%clk 0:01:30]} 21. Rce1 {[%clk 0:01:39]}  Rae8 {[%clk 0:01:18]} 22. Re2 {[%clk 0:01:22]}  Kh8 {[%clk 0:01:02]} 23. Rfe1 {[%clk 0:01:22]}  Nxf4 {[%clk 0:01:00]} 24. Rxe7 {[%clk 0:01:13]}  Ne2+ {[%clk 0:00:26]} 25. R1xe2 {[%clk 0:01:05]}  Qg3+ {[%clk 0:00:24]} 26. Rg2 {[%clk 0:01:04]}  Qf3 {[%clk 0:00:21]} 27. Rxg7 {[%clk 0:00:55]}  Qxh3 {[%clk 0:00:10]} 28. Rh2 {[%clk 0:00:51]}  Re1+ {[%clk 0:00:08]} 1-0


[Site "https://www.chess.com"]

[Event "Titled Tuesday Blitz August 24 2021"]
[White "Wagh Suyog"]
[Black "Nozdrachev, Leonid"]
[WhiteFideId "25071688"]
[BlackFideId "24113433"]
[WhiteElo "2219"]
[BlackElo "2240"]
[Result "1-0"]
[Round "07"]
[TimeControl "180+1"]
[Date "2021.08.24"]
[WhiteClock "0:01:18"]
[BlackClock "0:00:02"]

1. e4 {[%clk 0:03:00]}  d6 {[%clk 0:02:56]} 2. Nc3 {[%clk 0:03:00]}  c5 {[%clk 0:02:53]} 3. g3 {[%clk 0:02:55]}  Nf6 {[%clk 0:02:51]} 4. Bg2 {[%clk 0:02:56]}  g6 {[%clk 0:02:47]} 5. d3 {[%clk 0:02:56]}  Bg7 {[%clk 0:02:47]} 6. Be3 {[%clk 0:02:53]}  O-O {[%clk 0:02:47]} 7. h4 {[%clk 0:02:46]}  Nc6 {[%clk 0:02:40]} 8. h5 {[%clk 0:02:46]}  Nxh5 {[%clk 0:02:32]} 9. Qd2 {[%clk 0:02:46]}  b5 {[%clk 0:02:28]} 10. Bh6 {[%clk 0:02:45]}  Nd4 {[%clk 0:02:19]} 11. Nge2 {[%clk 0:02:23]}  b4 {[%clk 0:02:13]} 12. Nd5 {[%clk 0:02:17]}  Nxc2+ {[%clk 0:01:58]} 13. Kd1 {[%clk 0:01:40]}  Nxa1 {[%clk 0:01:55]} 14. Rxh5 {[%clk 0:01:41]}  e6 {[%clk 0:01:31]} 15. Bxg7 {[%clk 0:01:37]}  exd5 {[%clk 0:00:38]} 16. Qh6 {[%clk 0:01:22]}  gxh5 {[%clk 0:00:34]} 17. Bf6 {[%clk 0:01:21]}  Qxf6 {[%clk 0:00:30]} 18. Qxf6 {[%clk 0:01:22]}  Bg4 {[%clk 0:00:27]} 19. f3 {[%clk 0:01:22]}  Be6 {[%clk 0:00:25]} 20. Nf4 {[%clk 0:01:21]}  Rfc8 {[%clk 0:00:10]} 21. exd5 {[%clk 0:01:17]}  Bd7 {[%clk 0:00:03]} 22. Nxh5 {[%clk 0:01:18]}  Kf8 {[%clk 0:00:02]} 23. Qxd6+ {[%clk 0:01:18]}  Ke8 {[%clk 0:00:02]} 24. Nf6+ {[%clk 0:01:18]} 1-0


[Site "https://www.chess.com"]

[Event "Titled Tuesday Blitz August 24 2021"]
[White "Wagner, Dennis"]
[Black "Zierk, Steven"]
[WhiteFideId "24650684"]
[BlackFideId "2034255"]
[WhiteElo "2355"]
[BlackElo "2494"]
[Result "0-1"]
[Round "07"]
[TimeControl "180+1"]
[Date "2021.08.24"]
[WhiteClock "0:00:08"]
[BlackClock "0:01:12"]

1. e4 {[%clk 0:03:00]}  e6 {[%clk 0:02:57]} 2. d4 {[%clk 0:03:00]}  d5 {[%clk 0:02:57]} 3. Nc3 {[%clk 0:03:01]}  Bb4 {[%clk 0:02:57]} 4. e5 {[%clk 0:03:01]}  c5 {[%clk 0:02:58]} 5. a3 {[%clk 0:03:01]}  Bxc3+ {[%clk 0:02:58]} 6. bxc3 {[%clk 0:03:02]}  Qa5 {[%clk 0:02:59]} 7. Bd2 {[%clk 0:03:01]}  Qa4 {[%clk 0:02:59]} 8. Qg4 {[%clk 0:02:59]}  Kf8 {[%clk 0:02:59]} 9. h4 {[%clk 0:02:51]}  Qxc2 {[%clk 0:02:56]} 10. h5 {[%clk 0:02:49]}  b6 {[%clk 0:02:48]} 11. Rc1 {[%clk 0:02:30]}  Qe4+ {[%clk 0:02:47]} 12. Qxe4 {[%clk 0:02:30]}  dxe4 {[%clk 0:02:48]} 13. Rh4 {[%clk 0:02:30]}  Bb7 {[%clk 0:02:48]} 14. Ne2 {[%clk 0:02:24]}  Ne7 {[%clk 0:02:43]} 15. Ng3 {[%clk 0:02:23]}  Nf5 {[%clk 0:02:42]} 16. Nxf5 {[%clk 0:02:21]}  exf5 {[%clk 0:02:43]} 17. h6 {[%clk 0:02:12]}  g6 {[%clk 0:02:39]} 18. Bg5 {[%clk 0:02:11]}  Nd7 {[%clk 0:02:39]} 19. Bb5 {[%clk 0:02:09]}  Ke8 {[%clk 0:02:29]} 20. dxc5 {[%clk 0:01:59]}  a6 {[%clk 0:02:29]} 21. c6 {[%clk 0:01:08]}  axb5 {[%clk 0:02:29]} 22. cxb7 {[%clk 0:01:08]}  Rb8 {[%clk 0:02:24]} 23. c4 {[%clk 0:01:08]}  Nxe5 {[%clk 0:02:20]} 24. Ke2 {[%clk 0:00:48]}  Nd3 {[%clk 0:01:56]} 25. Rc2 {[%clk 0:00:47]}  Kd7 {[%clk 0:01:52]} 26. cxb5 {[%clk 0:00:45]}  Rxb7 {[%clk 0:01:51]} 27. f3 {[%clk 0:00:45]}  Re8 {[%clk 0:01:46]} 28. fxe4 {[%clk 0:00:43]}  fxe4 {[%clk 0:01:46]} 29. Ke3 {[%clk 0:00:41]}  f5 {[%clk 0:01:44]} 30. g4 {[%clk 0:00:37]}  Ra7 {[%clk 0:01:30]} 31. gxf5 {[%clk 0:00:36]}  gxf5 {[%clk 0:01:30]} 32. Rc3 {[%clk 0:00:36]}  Rc8 {[%clk 0:01:26]} 33. Rb3 {[%clk 0:00:18]}  Ke6 {[%clk 0:01:18]} 34. Rh1 {[%clk 0:00:17]}  Rc2 {[%clk 0:01:16]} 35. Rg1 {[%clk 0:00:13]}  Ne5 {[%clk 0:01:13]} 36. Bf4 {[%clk 0:00:08]}  Nc4+ {[%clk 0:01:12]} 37. Kd4 {[%clk 0:00:08]}  Rd7+ {[%clk 0:01:12]} 0-1


[Site "https://www.chess.com"]

[Event "Titled Tuesday Blitz August 24 2021"]
[White "Woodward, Andy"]
[Black "Starozhilov, Leonid"]
[WhiteFideId "30953499"]
[BlackFideId "14106752"]
[WhiteElo "2137"]
[BlackElo "2414"]
[Result "0-1"]
[Round "07"]
[TimeControl "180+1"]
[Date "2021.08.24"]
[WhiteClock "0:00:02"]
[BlackClock "0:00:13"]

1. d4 {[%clk 0:03:00]}  Nf6 {[%clk 0:02:56]} 2. c4 {[%clk 0:03:00]}  g6 {[%clk 0:02:56]} 3. Nc3 {[%clk 0:03:01]}  Bg7 {[%clk 0:02:57]} 4. g3 {[%clk 0:03:01]}  d6 {[%clk 0:02:57]} 5. Bg2 {[%clk 0:03:01]}  O-O {[%clk 0:02:58]} 6. Nf3 {[%clk 0:03:02]}  c6 {[%clk 0:02:59]} 7. O-O {[%clk 0:03:02]}  Bf5 {[%clk 0:02:59]} 8. Re1 {[%clk 0:02:58]}  Ne4 {[%clk 0:02:59]} 9. Qb3 {[%clk 0:02:52]}  Nxc3 {[%clk 0:02:48]} 10. Qxc3 {[%clk 0:02:52]}  c5 {[%clk 0:02:36]} 11. e4 {[%clk 0:02:51]}  Bg4 {[%clk 0:02:35]} 12. e5 {[%clk 0:02:41]}  Nc6 {[%clk 0:02:30]} 13. d5 {[%clk 0:01:38]}  Bxf3 {[%clk 0:02:25]} 14. Qxf3 {[%clk 0:01:39]}  Nd4 {[%clk 0:02:21]} 15. Qd1 {[%clk 0:01:39]}  Bxe5 {[%clk 0:02:17]} 16. Bh6 {[%clk 0:01:36]}  Re8 {[%clk 0:02:14]} 17. h4 {[%clk 0:01:31]}  Rb8 {[%clk 0:02:11]} 18. h5 {[%clk 0:01:29]}  b5 {[%clk 0:02:11]} 19. b3 {[%clk 0:01:18]}  bxc4 {[%clk 0:02:11]} 20. bxc4 {[%clk 0:01:19]}  Rb2 {[%clk 0:02:11]} 21. Qg4 {[%clk 0:01:00]}  Qc8 {[%clk 0:01:58]} 22. Qe4 {[%clk 0:00:37]}  Qf5 {[%clk 0:01:49]} 23. f4 {[%clk 0:00:33]}  Qxe4 {[%clk 0:01:36]} 24. Rxe4 {[%clk 0:00:34]}  Bg7 {[%clk 0:01:24]} 25. Bxg7 {[%clk 0:00:28]}  Kxg7 {[%clk 0:01:24]} 26. Rae1 {[%clk 0:00:28]}  Kf8 {[%clk 0:01:15]} 27. g4 {[%clk 0:00:12]}  Rxa2 {[%clk 0:00:54]} 28. R4e3 {[%clk 0:00:11]}  Nc2 {[%clk 0:00:53]} 29. R3e2 {[%clk 0:00:11]}  Nxe1 {[%clk 0:00:51]} 30. Rxa2 {[%clk 0:00:12]}  Nxg2 {[%clk 0:00:50]} 31. Kxg2 {[%clk 0:00:13]}  gxh5 {[%clk 0:00:48]} 32. g5 {[%clk 0:00:10]}  Ra8 {[%clk 0:00:39]} 33. Ra6 {[%clk 0:00:10]}  Kg7 {[%clk 0:00:39]} 34. Kg3 {[%clk 0:00:08]}  h6 {[%clk 0:00:39]} 35. Kh4 {[%clk 0:00:07]}  Kg6 {[%clk 0:00:37]} 36. gxh6 {[%clk 0:00:05]}  Kxh6 {[%clk 0:00:38]} 37. f5 {[%clk 0:00:06]}  f6 {[%clk 0:00:36]} 38. Ra2 {[%clk 0:00:05]}  a5 {[%clk 0:00:36]} 39. Re2 {[%clk 0:00:05]}  a4 {[%clk 0:00:26]} 40. Rxe7 {[%clk 0:00:04]}  a3 {[%clk 0:00:25]} 41. Re1 {[%clk 0:00:04]}  a2 {[%clk 0:00:25]} 42. Ra1 {[%clk 0:00:05]}  Ra3 {[%clk 0:00:18]} 43. Rg1 {[%clk 0:00:02]}  a1=Q {[%clk 0:00:18]} 44. Rg6+ {[%clk 0:00:01]}  Kh7 {[%clk 0:00:18]} 45. Rh6+ {[%clk 0:00:01]}  Kg8 {[%clk 0:00:15]} 46. Rg6+ {[%clk 0:00:01]}  Kf8 {[%clk 0:00:15]} 47. Rg8+ {[%clk 0:00:01]}  Kxg8 {[%clk 0:00:15]} 48. Kxh5 {[%clk 0:00:02]}  Qg1 {[%clk 0:00:13]} 49. Kh6 {[%clk 0:00:02]}  Qg5# {[%clk 0:00:13]} 0-1


[Site "https://www.chess.com"]